Workbook

Sheet Clasificación
D1: Resultado de la Carrera 21 junio 2019 21:07
A3: Posición | B3: Nombre | D3: Vueltas | E3: Coma | F3: Pista 1 | G3: Pista 3 | H3: Pista 5 | I3: Pista 6 | J3: Pista 4 | K3: Pista 2 | L3: Pista 7 | M3: Pista 8 | N3: Pole
A4: 1 | B4: OSCAR CAPEL | C4: Opel Calibra V6 | D4: 221 | E4: ,000 | F4: 37 | G4: 37 | H4: 36 | I4: 37 | J4: 37 | K4: 37 | N4: 1º | W4: 18
B5: Vuelta rápida | F5: 11.399 | G5: 11.278 | H5: 11.355 | I5: 11.327 | J5: 11.277 | K5: 11.32 | N5: 0
B6: Vuelta media | F6: 11.552 | G6: 11.368 | H6: 11.523 | I6: 11.418 | J6: 11.368 | K6: 11.477
B7: Vuelta lenta | D7: (2) | F7: (0) 11,84 | G7: (0) 11,49 | H7: (1) 13,93 | I7: (0) 11,52 | J7: (0) 11,48 | K7: (1) 13,49
A8: 2 | B8: EDUARD CERDÀ | C8: Opel Calibra V6 | D8: 218 | E8: ,088 | F8: 36 | G8: 36 | H8: 36 | I8: 36 | J8: 37 | K8: 37 | N8: 2º
B9: Vuelta rápida | F9: 11.388 | G9: 11.323 | H9: 11.458 | I9: 11.386 | J9: 11.267 | K9: 11.431 | N9: 0
B10: Vuelta media | F10: 11.635 | G10: 11.582 | H10: 11.585 | I10: 11.621 | J10: 11.407 | K10: 11.594
B11: Vuelta lenta | D11: (3) | F11: (1) 14,52 | G11: (1) 15,68 | H11: (0) 12,24 | I11: (1) 15,10 | J11: (0) 11,84 | K11: (0) 11,98
A12: 3 | B12: JM SEREROLS | C12: Opel Calibra V6 | D12: 216 | E12: ,110 | F12: 35 | G12: 37 | H12: 36 | I12: 36 | J12: 36 | K12: 36 | N12: 3º
B13: Vuelta rápida | F13: 11.531 | G13: 11.426 | H13: 11.429 | I13: 11.41 | J13: 11.382 | K13: 11.471 | N13: 0
B14: Vuelta media | F14: 11.943 | G14: 11.655 | H14: 11.582 | I14: 11.626 | J14: 11.52 | K14: 11.733
B15: Vuelta lenta | D15: (7) | F15: (4) 14,45 | G15: (1) 14,21 | H15: (0) 11,72 | I15: (1) 14,61 | J15: (0) 11,98 | K15: (1) 16,99
A16: 4 | B16: VÍCTOR QUEROL | C16: Opel Calibra V6 | D16: 215 | E16: ,037 | F16: 36 | G16: 36 | H16: 35 | I16: 36 | J16: 36 | K16: 36 | N16: 11º
B17: Vuelta rápida | F17: 11.574 | G17: 11.568 | H17: 11.624 | I17: 11.495 | J17: 11.4 | K17: 11.52 | N17: 0
B18: Vuelta media | F18: 11.733 | G18: 11.96 | H18: 11.816 | I18: 11.774 | J18: 11.546 | K18: 11.679
B19: Vuelta lenta | D19: (4) | F19: (0) 12,33 | G19: (2) 15,72 | H19: (1) 14,37 | I19: (1) 14,89 | J19: (0) 12,17 | K19: (0) 12,11
A20: 5 | B20: DAVID IZQUIERDO | C20: Opel Calibra V6 | D20: 215 | E20: ,012 | F20: 35 | G20: 36 | H20: 36 | I20: 36 | J20: 36 | K20: 36 | N20: 4º
B21: Vuelta rápida | F21: 11.615 | G21: 11.464 | H21: 11.535 | I21: 11.621 | J21: 11.475 | K21: 11.617 | N21: 0
B22: Vuelta media | F22: 11.79 | G22: 11.718 | H22: 11.772 | I22: 11.783 | J22: 11.8 | K22: 11.76
B23: Vuelta lenta | D23: (4) | F23: (0) 12,68 | G23: (1) 14,66 | H23: (1) 14,46 | I23: (0) 12,31 | J23: (2) 16,14 | K23: (0) 12,74
A24: 6 | B24: LORENZO RODRÍGUEZ | C24: Opel Calibra V6 | D24: 213 | E24: ,095 | F24: 35 | G24: 36 | H24: 35 | I24: 36 | J24: 36 | K24: 35 | N24: 6º
B25: Vuelta rápida | F25: 11.675 | G25: 11.579 | H25: 11.654 | I25: 11.622 | J25: 11.497 | K25: 11.636 | N25: 0
B26: Vuelta media | F26: 12.172 | G26: 11.697 | H26: 11.77 | I26: 11.971 | J26: 11.587 | K26: 11.812
B27: Vuelta lenta | D27: (6) | F27: (3) 17,07 | G27: (0) 11,87 | H27: (0) 11,93 | I27: (2) 15,03 | J27: (0) 11,77 | K27: (1) 14,71
A28: 7 | B28: SERGI SOLÀ | C28: Opel Calibra V6 | D28: 213 | E28: ,063 | F28: 35 | G28: 36 | H28: 35 | I28: 35 | J28: 36 | K28: 36 | N28: 10º
B29: Vuelta rápida | F29: 11.658 | G29: 11.551 | H29: 11.585 | I29: 11.515 | J29: 11.453 | K29: 11.57 | N29: 0
B30: Vuelta media | F30: 11.967 | G30: 11.741 | H30: 11.886 | I30: 11.862 | J30: 11.682 | K30: 11.857
B31: Vuelta lenta | D31: (11) | F31: (2) 15,88 | G31: (1) 14,82 | H31: (2) 14,43 | I31: (3) 13,43 | J31: (1) 14,71 | K31: (2) 13,83
A32: 8 | B32: JORDI ROBLES | C32: Opel Calibra V6 | D32: 212 | E32: ,036 | F32: 36 | G32: 35 | H32: 35 | I32: 36 | J32: 35 | K32: 35 | N32: 5º
B33: Vuelta rápida | F33: 11.715 | G33: 11.683 | H33: 11.712 | I33: 11.653 | J33: 11.658 | K33: 11.833 | N33: 0
B34: Vuelta media | F34: 11.861 | G34: 11.892 | H34: 12.094 | I34: 11.857 | J34: 11.901 | K34: 11.93
B35: Vuelta lenta | D35: (5) | F35: (0) 12,32 | G35: (1) 14,03 | H35: (2) 15,39 | I35: (1) 13,55 | J35: (1) 16,01 | K35: (0) 12,15
A36: 9 | B36: ADAM PARERA | C36: Opel Calibra V6 | D36: 212 | E36: ,016 | F36: 36 | G36: 34 | H36: 35 | I36: 35 | J36: 36 | K36: 36 | N36: 7º
B37: Vuelta rápida | F37: 11.415 | G37: 11.365 | H37: 11.461 | I37: 11.5 | J37: 11.299 | K37: 11.465 | N37: 0
B38: Vuelta media | F38: 11.871 | G38: 12.208 | H38: 12.301 | I38: 11.974 | J38: 11.595 | K38: 11.731
B39: Vuelta lenta | D39: (24) | F39: (3) 16,62 | G39: (8) 15,27 | H39: (6) 20,56 | I39: (4) 14,92 | J39: (2) 13,93 | K39: (1) 15,64
A40: 10 | B40: FRANCESC LIÑÁN | C40: Opel Calibra V6 | D40: 212 | E40: ,009 | F40: 35 | G40: 35 | H40: 35 | I40: 35 | J40: 36 | K40: 36 | N40: 8º
B41: Vuelta rápida | F41: 11.793 | G41: 11.682 | H41: 11.732 | I41: 11.641 | J41: 11.619 | K41: 11.685 | N41: 0
B42: Vuelta media | F42: 12.032 | G42: 12.143 | H42: 12.043 | I42: 11.779 | J42: 11.783 | K42: 11.848
B43: Vuelta lenta | D43: (7) | F43: (2) 13,80 | G43: (3) 17,05 | H43: (1) 16,61 | I43: (0) 12,07 | J43: (0) 12,93 | K43: (1) 13,35
A44: 11 | B44: CARLOS REPISO | C44: Opel Calibra V6 | D44: 212 | E44: ,000 | F44: 35 | G44: 36 | H44: 35 | I44: 35 | J44: 36 | K44: 35 | N44: 13º
B45: Vuelta rápida | F45: 11.734 | G45: 11.646 | H45: 11.676 | I45: 11.717 | J45: 11.612 | K45: 11.733 | N45: 0
B46: Vuelta media | F46: 11.907 | G46: 11.932 | H46: 12.041 | I46: 11.998 | J46: 11.836 | K46: 11.941
B47: Vuelta lenta | D47: (10) | F47: (1) 14,28 | G47: (2) 15,04 | H47: (3) 14,57 | I47: (2) 15,49 | J47: (1) 14,52 | K47: (1) 13,89
A48: 12 | B48: JORGE VALDIVIESO | C48: Opel Calibra V6 | D48: 210 | E48: ,045 | F48: 35 | G48: 36 | H48: 33 | I48: 35 | J48: 36 | K48: 35 | N48: 14º
B49: Vuelta rápida | F49: 11.752 | G49: 11.638 | H49: 11.767 | I49: 11.722 | J49: 11.588 | K49: 11.688 | N49: 0
B50: Vuelta media | F50: 12.021 | G50: 11.719 | H50: 12.606 | I50: 12.1 | J50: 11.793 | K50: 11.948
B51: Vuelta lenta | D51: (9) | F51: (1) 14,19 | G51: (0) 11,99 | H51: (7) 15,87 | I51: (1) 15,37 | J51: (0) 12,07 | K51: (0) 12,30
A52: 13 | B52: RICHARD ARREDONDO | C52: Opel Calibra V6 | D52: 207 | E52: ,044 | F52: 35 | G52: 35 | H52: 33 | I52: 35 | J52: 34 | K52: 35 | N52: NO
B53: Vuelta rápida | F53: 11.881 | G53: 11.806 | H53: 11.889 | I53: 11.846 | J53: 11.786 | K53: 11.802 | N53: 0
B54: Vuelta media | F54: 12.155 | G54: 12.156 | H54: 12.509 | I54: 12.131 | J54: 12.178 | K54: 12.156
B55: Vuelta lenta | D55: (12) | F55: (1) 14,05 | G55: (2) 15,12 | H55: (3) 19,46 | I55: (1) 14,69 | J55: (3) 15,23 | K55: (2) 16,78
A56: 14 | B56: MIQUEL BONAVIDA | C56: Opel Calibra V6 | D56: 207 | E56: ,029 | F56: 35 | G56: 34 | H56: 32 | I56: 36 | J56: 35 | K56: 35 | N56: NO
B57: Vuelta rápida | F57: 12.005 | G57: 11.971 | H57: 12.011 | I57: 11.743 | J57: 11.727 | K57: 11.797 | N57: 0
B58: Vuelta media | F58: 12.317 | G58: 12.34 | H58: 12.715 | I58: 11.97 | J58: 11.902 | K58: 11.999
B59: Vuelta lenta | D59: (12) | F59: (2) 14,41 | G59: (2) 15,36 | H59: (6) 18,08 | I59: (0) 13,22 | J59: (1) 14,26 | K59: (1) 14,79
A60: 15 | B60: JORDI PÉREZ | C60: Opel Calibra V6 | D60: 205 | E60: ,215 | F60: 36 | G60: 35 | H60: 33 | I60: 33 | J60: 35 | K60: 33 | N60: 9º
B61: Vuelta rápida | F61: 11.553 | G61: 11.399 | H61: 11.618 | I61: 11.839 | J61: 11.512 | K61: 11.795 | N61: 0
B62: Vuelta media | F62: 12 | G62: 11.844 | H62: 12.489 | I62: 12.742 | J62: 11.9 | K62: 12.452
B63: Vuelta lenta | D63: (26) | F63: (3) 14,80 | G63: (4) 14,57 | H63: (5) 17,73 | I63: (7) 17,36 | J63: (3) 15,36 | K63: (4) 16,75
A64: 16 | B64: MA URBALLA | C64: Opel Calibra V6 | D64: 206 | E64: ,019 | F64: 35 | G64: 32 | H64: 35 | I64: 34 | J64: 35 | K64: 35 | N64: 16º
B65: Vuelta rápida | F65: 11.84 | G65: 11.997 | H65: 11.871 | I65: 11.821 | J65: 11.893 | K65: 11.953 | N65: 0
B66: Vuelta media | F66: 12.173 | G66: 12.987 | H66: 12.204 | I66: 12.139 | J66: 12.058 | K66: 12.223
B67: Vuelta lenta | D67: (11) | F67: (0) 12,53 | G67: (7) 19,40 | H67: (2) 15,92 | I67: (1) 14,65 | J67: (0) 12,75 | K67: (1) 13,46
A68: 17 | B68: ALFONS BARCELÓ | C68: Opel Calibra V6 | D68: 202 | E68: ,071 | F68: 34 | G68: 33 | H68: 34 | I68: 33 | J68: 34 | K68: 34 | N68: 12º
B69: Vuelta rápida | F69: 12.032 | G69: 12.068 | H69: 12.048 | I69: 12.042 | J69: 11.847 | K69: 11.984 | N69: 0
B70: Vuelta media | F70: 12.491 | G70: 12.58 | H70: 12.425 | I70: 12.589 | J70: 12.633 | K70: 12.227
B71: Vuelta lenta | D71: (16) | F71: (2) 15,05 | G71: (3) 16,46 | H71: (2) 15,18 | I71: (4) 15,58 | J71: (5) 15,89 | K71: (0) 13,02
A72: 18 | B72: DAVID CELAYA | C72: Opel Calibra V6 | D72: 200 | E72: ,039 | F72: 32 | G72: 34 | H72: 33 | I72: 33 | J72: 34 | K72: 34 | N72: 15º
B73: Vuelta rápida | F73: 12.089 | G73: 11.863 | H73: 11.921 | I73: 12.118 | J73: 11.766 | K73: 11.99 | N73: 0
B74: Vuelta media | F74: 13.2 | G74: 12.398 | H74: 12.697 | I74: 13.043 | J74: 12.242 | K74: 12.328
B75: Vuelta lenta | D75: (29) | F75: (7) 23,54 | G75: (5) 14,89 | H75: (5) 17,71 | I75: (7) 17,36 | J75: (3) 16,06 | K75: (2) 15,28
A76: Realizado con TicTacSlot v.5.8.8 | J76: www.tictacslot.com

Sheet Verificaciones
B5: Piloto | C5: Modelo | D5: Marca | E5: Peso C | F5: Peso Total | G5: Motor | H5: Imán | I5: Corona | J5: RPM | K5: Consumo | L5: Neumáticos | O5: RPM 2 | P5: Consumo 2 | Q5: Imán 2
A6: 1 | B6: OSCAR CAPEL | C6: Opel Calibra | D6: Slot.it | E6: 19.09 | F6: 74.98 | G6: Flat 6 | H6: -3 | I6: 23 | J6: 8430 | K6: 212 | L6: SC 4758 | M6: =I6/10*J6 -> 19389 | N6: =O6/10*I6 -> 19458 | O6: 8460 | P6: 176 | Q6: -2.69
A7: 2 | B7: EDUARD CERDA | C7: Opel Calibra | D7: Slot.it | E7: 19.02 | F7: 73.78 | G7: Flat 6 | H7: -3.55 | I7: 23 | J7: 8430 | K7: 224 | L7: SC 4758 | M7: =I7/10*J7 -> 19389 | N7: =O7/10*I7 -> 20286 | O7: 8820 | P7: 192 | Q7: -2.86
A8: 3 | B8: JOSEP Mª SEREROLS | C8: Opel Calibra | D8: Slot.it | E8: 19.24 | F8: 76.68 | G8: Flat 6 | H8: -3.13 | I8: 23 | J8: 8460 | K8: 200 | L8: SC 4758 | M8: =I8/10*J8 -> 19458 | N8: =O8/10*I8 -> 20217 | O8: 8790 | P8: 172 | Q8: -2.75
A9: 4 | B9: DAVID IZQUIERDO | C9: Opel Calibra | D9: Slot.it | E9: 19.19 | F9: 74.08 | G9: Flat 6 | H9: -3.55 | I9: 23 | J9: 8370 | K9: 170 | L9: SC 4758 | M9: =I9/10*J9 -> 19251 | N9: =O9/10*I9 -> 18837 | O9: 8190 | P9: 294 | Q9: -3
A10: 5 | B10: JORDI ROBLES | C10: Opel Calibra | D10: Slot.it | E10: 19.09 | F10: 77.53 | G10: Flat 6 | H10: -2.92 | I10: 23 | J10: 8890 | K10: 196 | L10: SC 4758 | M10: =I10/10*J10 -> 20447 | N10: =O10/10*I10 -> 20148 | O10: 8760 | P10: 212 | Q10: -2.43
A11: 6 | B11: LORENZO RODRIGUEZ | C11: Opel Calibra | D11: Slot.it | E11: 19.12 | F11: 75.15 | G11: Flat 6 | H11: -2.98 | I11: 23 | J11: 8790 | K11: 132 | L11: SC 4758 | M11: =I11/10*J11 -> 20217 | N11: =O11/10*I11 -> 20010 | O11: 8700 | P11: 184 | Q11: -2.79
A12: 7 | B12: ADAM PARERA | C12: Opel Calibra | D12: Slot.it | E12: 19 | F12: 73.9 | G12: Flat 6 | H12: -3.19 | I12: 23 | J12: 8850 | K12: 156 | L12: SC 4758 | M12: =I12/10*J12 -> 20355 | N12: =O12/10*I12 -> 20907 | O12: 9090 | P12: 188 | Q12: -2.4
A13: 8 | B13: FRANCESC LIÑAN | C13: Opel Calibra | D13: Slot.it | E13: 19.06 | F13: 73.08 | G13: Flat 6 | H13: -3.61 | I13: 23 | J13: 8520 | K13: 184 | L13: SC 4758 | M13: =I13/10*J13 -> 19596 | N13: =O13/10*I13 -> 19596 | O13: 8520 | P13: 172 | Q13: -2.99
A14: 9 | B14: JORDI PEREZ | C14: Opel Calibra | D14: Slot.it | E14: 19.12 | F14: 73.65 | G14: Flat 6 | H14: -2.88 | I14: 23 | J14: 8520 | K14: 200 | L14: SC 4758 | M14: =I14/10*J14 -> 19596 | N14: =O14/10*I14 -> 19251 | O14: 8370 | P14: 200 | Q14: -2.68
A15: 10 | B15: SERGI SOLA | C15: Opel Calibra | D15: Slot.it | E15: 19.02 | F15: 76.98 | G15: Flat 6 | H15: -2.24 | I15: 23 | J15: 8520 | K15: 180 | L15: SC 4758 | M15: =I15/10*J15 -> 19596 | N15: =O15/10*I15 -> 20769 | O15: 9030 | P15: 172 | Q15: -1.68
A16: 11 | B16: VICTOR QUEROL | C16: Opel Calibra | D16: Slot.it | E16: 19.03 | F16: 74.96 | G16: Flat 6 | H16: -3.55 | I16: 23 | J16: 8220 | K16: 224 | L16: SW PS1MW | M16: =I16/10*J16 -> 18906 | N16: =O16/10*I16 -> 19389 | O16: 8430 | P16: 200 | Q16: -3.12
A17: 12 | B17: ALFONS BARCELO | C17: Opel Calibra | D17: Slot.it | E17: 19.04 | F17: 76.07 | G17: Flat 6 | H17: -3 | I17: 23 | J17: 8610 | K17: 188 | L17: SC 4758 | M17: =I17/10*J17 -> 19803 | N17: =O17/10*I17 -> 20286 | O17: 8820 | P17: 176 | Q17: -2.95
A18: 13 | B18: CARLOS REPISO | C18: Opel Calibra | D18: Slot.it | E18: 19.28 | F18: 77.98 | G18: Flat 6 | H18: -3.69 | I18: 23 | J18: 8610 | K18: 212 | L18: SC 4753 | M18: =I18/10*J18 -> 19803 | N18: =O18/10*I18 -> 19780 | O18: 8600 | P18: 200 | Q18: -3.08
A19: 14 | B19: JORGE VALDIVIESO | C19: Opel Calibra | D19: Slot.it | E19: 19.19 | F19: 75.72 | G19: Flat 6 | H19: -3.53 | I19: 23 | J19: 8340 | K19: 220 | L19: SC 4758 | M19: =I19/10*J19 -> 19182 | N19: =O19/10*I19 -> 19458 | O19: 8460 | P19: 200 | Q19: -3
A20: 15 | B20: DAVID CELAYA | C20: Opel Calibra | D20: Slot.it | E20: 19.13 | F20: 75.83 | G20: Flat 6 | H20: -2.88 | I20: 23 | J20: 8190 | K20: 188 | L20: SC 4758 | M20: =I20/10*J20 -> 18837 | N20: =O20/10*I20 -> 18768 | O20: 8160 | P20: 168 | Q20: -2.31
A21: 16 | B21: MA URBALLA | C21: Opel Calibra | D21: Slot.it | E21: 19 | F21: 75.16 | G21: Flat 6 | H21: -3.02 | I21: 23 | J21: 8610 | K21: 188 | L21: SC 4758 | M21: =I21/10*J21 -> 19803 | N21: =O21/10*I21 -> 19872 | O21: 8640 | P21: 172 | Q21: -2.86
A22: 17 | B22: RICHARD ARREDONDO | C22: Opel Calibra | D22: Slot.it | E22: 19 | F22: 75.37 | G22: Flat 6 | H22: -3.27 | I22: 23 | J22: 8370 | K22: 236 | L22: SC 4758 | M22: =I22/10*J22 -> 19251 | N22: =O22/10*I22 -> 19941 | O22: 8670 | P22: 212 | Q22: -2.54
A23: 18 | B23: MIQUEL BONAVIDA | C23: Opel Calibra | D23: Slot.it | E23: 19.05 | F23: 74.34 | G23: Flat 6 | H23: -3.2 | I23: 23 | J23: 8250 | K23: 208 | L23: SC 4753 | M23: =I23/10*J23 -> 18975 | N23: =O23/10*I23 -> 20217 | O23: 8790 | P23: 192 | Q23: -2.6
